[Event "Titled Tuesday Blitz May 11 2021"]
[White "Gontcharov, Vladislav"]
[Black "Riehle, Marco"]
[WhiteFideId "4123492"]
[BlackFideId "12904392"]
[WhiteElo "2503"]
[BlackElo "2505"]
[Result "0-1"]
[Round "02"]
[TimeControl "180+1"]
[Date "2021.05.11"]
[WhiteClock "0:00:02"]
[BlackClock "0:00:21"]

1. Nf3 {[%clk 0:03:00]}  c5 {[%clk 0:02:53]} 2. e4 {[%clk 0:03:00]}  e6 {[%clk 0:02:50]} 3. d4 {[%clk 0:02:59]}  cxd4 {[%clk 0:02:48]} 4. Nxd4 {[%clk 0:03:00]}  Nf6 {[%clk 0:02:49]} 5. Bd3 {[%clk 0:02:50]}  Nc6 {[%clk 0:02:48]} 6. Nxc6 {[%clk 0:02:44]}  dxc6 {[%clk 0:02:49]} 7. O-O {[%clk 0:02:39]}  Bc5 {[%clk 0:02:48]} 8. Nd2 {[%clk 0:02:38]}  O-O {[%clk 0:02:45]} 9. e5 {[%clk 0:02:38]}  Nd5 {[%clk 0:02:42]} 10. Ne4 {[%clk 0:02:34]}  Be7 {[%clk 0:02:42]} 11. Qh5 {[%clk 0:02:33]}  g6 {[%clk 0:02:37]} 12. Qh6 {[%clk 0:02:31]}  f5 {[%clk 0:02:29]} 13. exf6 {[%clk 0:02:29]}  Bxf6 {[%clk 0:02:27]} 14. Bg5 {[%clk 0:02:20]}  Bg7 {[%clk 0:02:10]} 15. Qxg7+ {[%clk 0:02:17]}  Kxg7 {[%clk 0:02:11]} 16. Bxd8 {[%clk 0:02:17]}  Rxd8 {[%clk 0:02:11]} 17. Rad1 {[%clk 0:02:07]}  e5 {[%clk 0:02:07]} 18. Rfe1 {[%clk 0:01:47]}  Bf5 {[%clk 0:02:02]} 19. Nc5 {[%clk 0:01:46]}  Bxd3 {[%clk 0:02:01]} 20. Ne6+ {[%clk 0:01:44]}  Kf6 {[%clk 0:02:01]} 21. Nxd8 {[%clk 0:01:43]}  Ba6 {[%clk 0:01:24]} 22. c4 {[%clk 0:01:31]}  Rxd8 {[%clk 0:01:21]} 23. cxd5 {[%clk 0:01:30]}  cxd5 {[%clk 0:01:22]} 24. f3 {[%clk 0:01:23]}  d4 {[%clk 0:01:18]} 25. Kf2 {[%clk 0:01:23]}  g5 {[%clk 0:01:15]} 26. Rc1 {[%clk 0:01:22]}  h5 {[%clk 0:01:10]} 27. Rc5 {[%clk 0:01:19]}  Re8 {[%clk 0:01:05]} 28. b3 {[%clk 0:01:18]}  Re6 {[%clk 0:01:03]} 29. Rc8 {[%clk 0:01:05]}  Re7 {[%clk 0:00:58]} 30. Rf8+ {[%clk 0:01:03]}  Ke6 {[%clk 0:00:57]} 31. Rh8 {[%clk 0:01:00]}  Rc7 {[%clk 0:00:55]} 32. Rh6+ {[%clk 0:00:52]}  Kf5 {[%clk 0:00:36]} 33. h4 {[%clk 0:00:36]}  Rc2+ {[%clk 0:00:35]} 34. Kg3 {[%clk 0:00:36]}  d3 {[%clk 0:00:28]} 35. Rxh5 {[%clk 0:00:25]}  d2 {[%clk 0:00:25]} 36. Rxg5+ {[%clk 0:00:24]}  Kf6 {[%clk 0:00:25]} 37. Rexe5 {[%clk 0:00:19]}  Bd3 {[%clk 0:00:21]} 38. Re8 {[%clk 0:00:01]}  d1=Q {[%clk 0:00:20]} 39. Rf8+ {[%clk 0:00:01]}  Ke7 {[%clk 0:00:20]} 40. Rf4 {[%clk 0:00:01]}  Qe1+ {[%clk 0:00:20]} 41. Kh3 {[%clk 0:00:02]}  Qh1+ {[%clk 0:00:20]} 42. Kg4 {[%clk 0:00:01]}  Rxg2+ {[%clk 0:00:20]} 43. Kh5 {[%clk 0:00:02]}  Rxg5+ {[%clk 0:00:21]} 0-1


[Site "https://www.chess.com"]

[Event "Titled Tuesday Blitz May 11 2021"]
[White "Gschnitzer, Adrian"]
[Black "Kobalia, Mikhail"]
[WhiteFideId "1270337"]
[BlackFideId "4119150"]
[WhiteElo "2294"]
[BlackElo "2569"]
[Result "0-1"]
[Round "02"]
[TimeControl "180+1"]
[Date "2021.05.11"]
[WhiteClock "0:00:35"]
[BlackClock "0:01:39"]

1. e4 {[%clk 0:03:00]}  c6 {[%clk 0:02:57]} 2. d4 {[%clk 0:03:00]}  d5 {[%clk 0:02:58]} 3. e5 {[%clk 0:03:00]}  Bf5 {[%clk 0:02:57]} 4. Nf3 {[%clk 0:03:00]}  e6 {[%clk 0:02:57]} 5. Be2 {[%clk 0:03:01]}  Ne7 {[%clk 0:02:57]} 6. O-O {[%clk 0:03:01]}  Bg6 {[%clk 0:02:57]} 7. Nbd2 {[%clk 0:02:58]}  Nd7 {[%clk 0:02:56]} 8. Re1 {[%clk 0:02:58]}  Nf5 {[%clk 0:02:56]} 9. Nf1 {[%clk 0:02:58]}  c5 {[%clk 0:02:54]} 10. c3 {[%clk 0:02:58]}  h5 {[%clk 0:02:43]} 11. Bd3 {[%clk 0:02:35]}  Be7 {[%clk 0:02:40]} 12. Ng3 {[%clk 0:02:32]}  Nxg3 {[%clk 0:02:27]} 13. Bxg6 {[%clk 0:02:30]}  fxg6 {[%clk 0:02:27]} 14. hxg3 {[%clk 0:02:25]}  O-O {[%clk 0:02:27]} 15. Be3 {[%clk 0:02:10]}  Rc8 {[%clk 0:02:22]} 16. Qc2 {[%clk 0:01:52]}  Kh7 {[%clk 0:02:10]} 17. g4 {[%clk 0:01:42]}  hxg4 {[%clk 0:02:04]} 18. Nh2 {[%clk 0:01:39]}  cxd4 {[%clk 0:02:03]} 19. Bxd4 {[%clk 0:01:37]}  Bc5 {[%clk 0:02:03]} 20. Bxc5 {[%clk 0:01:31]}  Nxc5 {[%clk 0:01:58]} 21. Nxg4 {[%clk 0:01:29]}  Qh4 {[%clk 0:01:58]} 22. Nh2 {[%clk 0:01:08]}  Ne4 {[%clk 0:01:49]} 23. Nf3 {[%clk 0:01:02]}  Rxf3 {[%clk 0:01:45]} 24. gxf3 {[%clk 0:01:02]}  Ng5 {[%clk 0:01:45]} 25. Re3 {[%clk 0:00:45]}  Rf8 {[%clk 0:01:41]} 26. Qd3 {[%clk 0:00:35]}  Nh3+ {[%clk 0:01:39]} 0-1


[Site "https://www.chess.com"]

[Event "Titled Tuesday Blitz May 11 2021"]
[White "Gunina, Valentina"]
[Black "AleksanderHnydiuk"]
[WhiteFideId "4167570"]
[WhiteElo "2399"]
[BlackElo "2538"]
[Result "1-0"]
[Round "02"]
[TimeControl "180+1"]
[Date "2021.05.11"]
[WhiteClock "0:01:33"]
[BlackClock "0:00:14"]

1. d4 {[%clk 0:03:00]}  Nf6 {[%clk 0:02:59]} 2. c4 {[%clk 0:03:00]}  e6 {[%clk 0:02:59]} 3. Nf3 {[%clk 0:03:00]}  d5 {[%clk 0:02:58]} 4. Nc3 {[%clk 0:02:59]}  c5 {[%clk 0:02:58]} 5. cxd5 {[%clk 0:02:59]}  Nxd5 {[%clk 0:02:59]} 6. e4 {[%clk 0:02:59]}  Nxc3 {[%clk 0:03:00]} 7. bxc3 {[%clk 0:02:59]}  cxd4 {[%clk 0:03:00]} 8. cxd4 {[%clk 0:03:00]}  Bb4+ {[%clk 0:03:01]} 9. Bd2 {[%clk 0:03:00]}  Bxd2+ {[%clk 0:03:02]} 10. Qxd2 {[%clk 0:03:00]}  O-O {[%clk 0:03:03]} 11. Bc4 {[%clk 0:03:01]}  Nd7 {[%clk 0:03:03]} 12. O-O {[%clk 0:03:01]}  b6 {[%clk 0:03:04]} 13. Rfe1 {[%clk 0:03:01]}  Bb7 {[%clk 0:03:04]} 14. Rad1 {[%clk 0:03:01]}  Rc8 {[%clk 0:03:04]} 15. Bb3 {[%clk 0:03:01]}  h6 {[%clk 0:03:03]} 16. h3 {[%clk 0:03:01]}  Qc7 {[%clk 0:02:55]} 17. d5 {[%clk 0:02:56]}  exd5 {[%clk 0:02:53]} 18. exd5 {[%clk 0:02:56]}  Qc3 {[%clk 0:02:43]} 19. Qf4 {[%clk 0:02:46]}  Nc5 {[%clk 0:02:18]} 20. Re3 {[%clk 0:02:34]}  Qb2 {[%clk 0:02:13]} 21. Bc4 {[%clk 0:02:04]}  Qc2 {[%clk 0:01:58]} 22. Rd4 {[%clk 0:01:55]}  Qc1+ {[%clk 0:01:53]} 23. Kh2 {[%clk 0:01:55]}  Rce8 {[%clk 0:01:32]} 24. Ne5 {[%clk 0:01:54]}  a6 {[%clk 0:01:00]} 25. Ng4 {[%clk 0:01:39]}  Rxe3 {[%clk 0:00:46]} 26. fxe3 {[%clk 0:01:39]}  Re8 {[%clk 0:00:18]} 27. d6 {[%clk 0:01:35]}  Ne6 {[%clk 0:00:17]} 28. Bxe6 {[%clk 0:01:34]}  fxe6 {[%clk 0:00:15]} 29. Nxh6+ {[%clk 0:01:33]}  gxh6 {[%clk 0:00:14]} 30. Qxh6 {[%clk 0:01:33]} 1-0


[Site "https://www.chess.com"]

[Event "Titled Tuesday Blitz May 11 2021"]
[White "Heinemann, Josefine"]
[Black "Belous, Vladimir"]
[WhiteFideId "12900460"]
[BlackFideId "4174003"]
[WhiteElo "2300"]
[BlackElo "2583"]
[Result "0-1"]
[Round "02"]
[TimeControl "180+1"]
[Date "2021.05.11"]
[WhiteClock "0:00:18"]
[BlackClock "0:01:21"]

1. d4 {[%clk 0:03:00]}  Nf6 {[%clk 0:02:59]} 2. c4 {[%clk 0:03:00]}  g6 {[%clk 0:03:00]} 3. Nc3 {[%clk 0:02:59]}  d5 {[%clk 0:03:00]} 4. cxd5 {[%clk 0:02:54]}  Nxd5 {[%clk 0:03:01]} 5. e4 {[%clk 0:02:54]}  Nxc3 {[%clk 0:03:01]} 6. bxc3 {[%clk 0:02:55]}  Bg7 {[%clk 0:03:02]} 7. Nf3 {[%clk 0:02:55]}  c5 {[%clk 0:03:03]} 8. Be2 {[%clk 0:02:53]}  O-O {[%clk 0:03:03]} 9. O-O {[%clk 0:02:53]}  b6 {[%clk 0:03:02]} 10. h4 {[%clk 0:02:28]}  Bg4 {[%clk 0:02:55]} 11. e5 {[%clk 0:02:26]}  Nc6 {[%clk 0:02:50]} 12. Be3 {[%clk 0:02:24]}  Rc8 {[%clk 0:02:45]} 13. Qd2 {[%clk 0:02:20]}  cxd4 {[%clk 0:02:40]} 14. cxd4 {[%clk 0:02:20]}  Na5 {[%clk 0:02:41]} 15. Rac1 {[%clk 0:02:18]}  Qd5 {[%clk 0:02:41]} 16. Bh6 {[%clk 0:01:51]}  Bxh6 {[%clk 0:02:32]} 17. Qxh6 {[%clk 0:01:52]}  Bxf3 {[%clk 0:02:30]} 18. Bxf3 {[%clk 0:01:52]}  Qxd4 {[%clk 0:02:30]} 19. e6 {[%clk 0:01:46]}  fxe6 {[%clk 0:02:30]} 20. Rxc8 {[%clk 0:01:40]}  Rxc8 {[%clk 0:02:29]} 21. h5 {[%clk 0:01:41]}  Qf6 {[%clk 0:02:10]} 22. hxg6 {[%clk 0:01:40]}  hxg6 {[%clk 0:02:10]} 23. Rd1 {[%clk 0:01:31]}  Nc4 {[%clk 0:02:02]} 24. Re1 {[%clk 0:00:49]}  Ne5 {[%clk 0:01:55]} 25. Be4 {[%clk 0:00:44]}  Qxf2+ {[%clk 0:01:24]} 26. Kxf2 {[%clk 0:00:41]}  Ng4+ {[%clk 0:01:24]} 27. Kg3 {[%clk 0:00:41]}  Nxh6 {[%clk 0:01:25]} 28. Bxg6 {[%clk 0:00:41]}  Rc6 {[%clk 0:01:23]} 29. Rd1 {[%clk 0:00:39]}  Kg7 {[%clk 0:01:23]} 30. Be4 {[%clk 0:00:39]}  Rc3+ {[%clk 0:01:22]} 31. Kf4 {[%clk 0:00:37]}  Kf6 {[%clk 0:01:23]} 32. Bf3 {[%clk 0:00:21]}  e5+ {[%clk 0:01:21]} 33. Ke4 {[%clk 0:00:21]}  Nf7 {[%clk 0:01:22]} 34. Rd7 {[%clk 0:00:18]}  Ng5+ {[%clk 0:01:21]} 35. Kd5 {[%clk 0:00:18]}  Rc5# {[%clk 0:01:21]} 0-1


[Site "https://www.chess.com"]

[Event "Titled Tuesday Blitz May 11 2021"]
[White "Hjartarson, Johann"]
[Black "Martinez Alcantara, Jose Eduardo"]
[WhiteFideId "2300044"]
[BlackFideId "3805662"]
[WhiteElo "2502"]
[BlackElo "2690"]
[Result "0-1"]
[Round "02"]
[TimeControl "180+1"]
[Date "2021.05.11"]
[WhiteClock "0:00:11"]
[BlackClock "0:00:52"]

1. d4 {[%clk 0:03:00]}  Nf6 {[%clk 0:02:59]} 2. c4 {[%clk 0:03:00]}  e6 {[%clk 0:03:00]} 3. Nc3 {[%clk 0:02:59]}  Bb4 {[%clk 0:03:00]} 4. e3 {[%clk 0:02:59]}  O-O {[%clk 0:03:00]} 5. Bd3 {[%clk 0:02:59]}  d5 {[%clk 0:03:00]} 6. Nf3 {[%clk 0:02:58]}  c5 {[%clk 0:03:00]} 7. O-O {[%clk 0:02:57]}  Nc6 {[%clk 0:03:00]} 8. cxd5 {[%clk 0:02:54]}  exd5 {[%clk 0:03:01]} 9. dxc5 {[%clk 0:02:52]}  Bxc5 {[%clk 0:03:02]} 10. b3 {[%clk 0:02:51]}  Bg4 {[%clk 0:03:00]} 11. Bb2 {[%clk 0:02:48]}  a6 {[%clk 0:03:00]} 12. Be2 {[%clk 0:02:45]}  Re8 {[%clk 0:02:55]} 13. Rc1 {[%clk 0:02:44]}  Ba7 {[%clk 0:02:55]} 14. Nd4 {[%clk 0:02:40]}  Bxd4 {[%clk 0:02:55]} 15. Bxg4 {[%clk 0:02:39]}  Be5 {[%clk 0:02:55]} 16. Bf3 {[%clk 0:02:38]}  Qd6 {[%clk 0:02:46]} 17. g3 {[%clk 0:02:36]}  Rad8 {[%clk 0:02:45]} 18. Bg2 {[%clk 0:02:29]}  h5 {[%clk 0:02:41]} 19. Qc2 {[%clk 0:02:19]}  d4 {[%clk 0:02:32]} 20. exd4 {[%clk 0:02:08]}  Nxd4 {[%clk 0:02:33]} 21. Qb1 {[%clk 0:02:06]}  b5 {[%clk 0:02:22]} 22. Rce1 {[%clk 0:02:02]}  Qc7 {[%clk 0:02:07]} 23. Ne4 {[%clk 0:01:58]}  Nxe4 {[%clk 0:02:04]} 24. Bxe4 {[%clk 0:01:56]}  g6 {[%clk 0:01:56]} 25. Bg2 {[%clk 0:01:51]}  Bf6 {[%clk 0:01:55]} 26. Rxe8+ {[%clk 0:01:46]}  Rxe8 {[%clk 0:01:56]} 27. Re1 {[%clk 0:01:31]}  Rxe1+ {[%clk 0:01:40]} 28. Qxe1 {[%clk 0:01:30]}  Qc2 {[%clk 0:01:41]} 29. Qe8+ {[%clk 0:01:10]}  Kg7 {[%clk 0:01:37]} 30. Bd5 {[%clk 0:01:09]}  Qxb2 {[%clk 0:01:21]} 31. Qxf7+ {[%clk 0:01:07]}  Kh6 {[%clk 0:01:22]} 32. Be4 {[%clk 0:00:40]}  Nf5 {[%clk 0:01:21]} 33. Bxf5 {[%clk 0:00:34]}  Qc1+ {[%clk 0:01:07]} 34. Kg2 {[%clk 0:00:33]}  Qc6+ {[%clk 0:01:08]} 35. Kh3 {[%clk 0:00:26]}  gxf5 {[%clk 0:01:07]} 36. Qf8+ {[%clk 0:00:26]}  Kg6 {[%clk 0:01:08]} 37. f4 {[%clk 0:00:20]}  Qe6 {[%clk 0:01:01]} 38. a4 {[%clk 0:00:17]}  Qe2 {[%clk 0:01:01]} 39. Qg8+ {[%clk 0:00:15]}  Bg7 {[%clk 0:01:01]} 40. axb5 {[%clk 0:00:14]}  axb5 {[%clk 0:01:01]} 41. b4 {[%clk 0:00:14]}  h4 {[%clk 0:00:57]} 42. Qd5 {[%clk 0:00:11]}  Qf1+ {[%clk 0:00:52]} 0-1


[Site "https://www.chess.com"]

[Event "Titled Tuesday Blitz May 11 2021"]
[White "Jones, Gawain C B"]
[Black "Erdogdu, Mert"]
[WhiteFideId "409561"]
[BlackFideId "6301495"]
[WhiteElo "2657"]
[BlackElo "2485"]
[Result "0-1"]
[Round "02"]
[TimeControl "180+1"]
[Date "2021.05.11"]
[WhiteClock "0:00:03"]
[BlackClock "0:00:11"]

1. Nf3 {[%clk 0:03:00]}  d5 {[%clk 0:02:59]} 2. b3 {[%clk 0:03:00]}  e6 {[%clk 0:02:59]} 3. Bb2 {[%clk 0:03:00]}  c5 {[%clk 0:03:00]} 4. e3 {[%clk 0:02:58]}  Nf6 {[%clk 0:03:00]} 5. c4 {[%clk 0:02:58]}  Be7 {[%clk 0:02:59]} 6. g3 {[%clk 0:02:57]}  O-O {[%clk 0:02:59]} 7. Bg2 {[%clk 0:02:57]}  b6 {[%clk 0:02:58]} 8. cxd5 {[%clk 0:02:57]}  Nxd5 {[%clk 0:02:56]} 9. d4 {[%clk 0:02:55]}  Ba6 {[%clk 0:02:53]} 10. a3 {[%clk 0:02:51]}  Nd7 {[%clk 0:02:43]} 11. Nc3 {[%clk 0:02:37]}  Nxc3 {[%clk 0:02:36]} 12. Bxc3 {[%clk 0:02:38]}  Rc8 {[%clk 0:02:34]} 13. d5 {[%clk 0:02:33]}  exd5 {[%clk 0:02:22]} 14. Qxd5 {[%clk 0:02:32]}  Bf6 {[%clk 0:02:22]} 15. Qd2 {[%clk 0:02:26]}  Qe7 {[%clk 0:02:16]} 16. Bf1 {[%clk 0:02:00]}  Bxf1 {[%clk 0:02:10]} 17. Kxf1 {[%clk 0:02:00]}  Rfd8 {[%clk 0:02:09]} 18. Kg2 {[%clk 0:01:49]}  Qe4 {[%clk 0:02:07]} 19. Bxf6 {[%clk 0:01:42]}  Nxf6 {[%clk 0:02:07]} 20. Qe2 {[%clk 0:01:42]}  Rd3 {[%clk 0:01:51]} 21. Rhb1 {[%clk 0:01:28]}  Rcd8 {[%clk 0:01:48]} 22. Kg1 {[%clk 0:01:26]}  Qd5 {[%clk 0:01:37]} 23. Ne1 {[%clk 0:01:15]}  Rd2 {[%clk 0:01:26]} 24. Qf3 {[%clk 0:01:14]}  Ne4 {[%clk 0:01:23]} 25. Qh1 {[%clk 0:00:30]}  Nxf2 {[%clk 0:01:04]} 26. Qxd5 {[%clk 0:00:29]}  Nh3+ {[%clk 0:00:58]} 27. Kh1 {[%clk 0:00:28]}  R8xd5 {[%clk 0:00:59]} 28. Nf3 {[%clk 0:00:25]}  Re2 {[%clk 0:00:57]} 29. Re1 {[%clk 0:00:24]}  Rxe1+ {[%clk 0:00:53]} 30. Rxe1 {[%clk 0:00:23]}  Nf2+ {[%clk 0:00:51]} 31. Kg2 {[%clk 0:00:23]}  Ne4 {[%clk 0:00:51]} 32. b4 {[%clk 0:00:17]}  Rd3 {[%clk 0:00:42]} 33. bxc5 {[%clk 0:00:17]}  Nxc5 {[%clk 0:00:43]} 34. Ne5 {[%clk 0:00:16]}  Rxa3 {[%clk 0:00:42]} 35. Rd1 {[%clk 0:00:17]}  g6 {[%clk 0:00:34]} 36. Kf3 {[%clk 0:00:17]}  Kf8 {[%clk 0:00:28]} 37. Rd8+ {[%clk 0:00:16]}  Ke7 {[%clk 0:00:26]} 38. Rh8 {[%clk 0:00:16]}  h5 {[%clk 0:00:25]} 39. Rh7 {[%clk 0:00:15]}  Ke6 {[%clk 0:00:23]} 40. Nxf7 {[%clk 0:00:15]}  Ra2 {[%clk 0:00:23]} 41. g4 {[%clk 0:00:13]}  hxg4+ {[%clk 0:00:21]} 42. Kxg4 {[%clk 0:00:13]}  Ne4 {[%clk 0:00:20]} 43. Nd8+ {[%clk 0:00:10]}  Kd6 {[%clk 0:00:19]} 44. Rg7 {[%clk 0:00:08]}  Nf6+ {[%clk 0:00:15]} 45. Kg5 {[%clk 0:00:07]}  Ne4+ {[%clk 0:00:14]} 46. Kf4 {[%clk 0:00:07]}  Nc5 {[%clk 0:00:13]} 47. Rxg6+ {[%clk 0:00:07]}  Kd7 {[%clk 0:00:14]} 48. Rg8 {[%clk 0:00:04]}  Rxh2 {[%clk 0:00:13]} 49. Ke5 {[%clk 0:00:04]}  Rh5+ {[%clk 0:00:13]} 50. Kf6 {[%clk 0:00:04]}  Rh4 {[%clk 0:00:11]} 51. Nf7 {[%clk 0:00:04]}  Re4 {[%clk 0:00:11]} 52. Ne5+ {[%clk 0:00:03]}  Kc7 {[%clk 0:00:11]} 53. Rg7+ {[%clk 0:00:03]}  Kd6 {[%clk 0:00:11]} 54. Nf7+ {[%clk 0:00:03]}  Kc6 {[%clk 0:00:11]} 55. Ne5+ {[%clk 0:00:03]}  Kb5 {[%clk 0:00:11]} 56. Rxa7 {[%clk 0:00:02]}  Rxe3 {[%clk 0:00:12]} 57. Ra1 {[%clk 0:00:02]}  Re2 {[%clk 0:00:08]} 58. Rb1+ {[%clk 0:00:02]}  Ka6 {[%clk 0:00:08]} 59. Kf5 {[%clk 0:00:02]}  Na4 {[%clk 0:00:08]} 60. Nc6 {[%clk 0:00:02]}  b5 {[%clk 0:00:07]} 61. Kf4 {[%clk 0:00:02]}  Re6 {[%clk 0:00:07]} 62. Nb4+ {[%clk 0:00:01]}  Ka5 {[%clk 0:00:07]} 63. Nd5 {[%clk 0:00:02]}  Rc6 {[%clk 0:00:06]} 64. Ke5 {[%clk 0:00:02]}  Rc4 {[%clk 0:00:05]} 65. Rh1 {[%clk 0:00:03]}  Rc5 {[%clk 0:00:05]} 66. Rh8 {[%clk 0:00:03]}  Nb6 {[%clk 0:00:05]} 67. Kd4 {[%clk 0:00:02]}  Rxd5+ {[%clk 0:00:05]} 68. Kc3 {[%clk 0:00:02]}  Rd7 {[%clk 0:00:05]} 69. Kb3 {[%clk 0:00:02]}  Ka6 {[%clk 0:00:06]} 70. Rh6 {[%clk 0:00:02]}  Rd4 {[%clk 0:00:06]} 71. Kc3 {[%clk 0:00:03]}  Rc4+ {[%clk 0:00:07]} 72. Kb3 {[%clk 0:00:03]}  Ka5 {[%clk 0:00:07]} 73. Rh7 {[%clk 0:00:04]}  Na4 {[%clk 0:00:08]} 74. Ra7+ {[%clk 0:00:03]}  Kb6 {[%clk 0:00:08]} 75. Rh7 {[%clk 0:00:04]}  Nc5+ {[%clk 0:00:09]} 76. Kb2 {[%clk 0:00:05]}  b4 {[%clk 0:00:10]} 77. Rh8 {[%clk 0:00:05]}  Kb5 {[%clk 0:00:10]} 78. Rb8+ {[%clk 0:00:04]}  Ka5 {[%clk 0:00:11]} 79. Ra8+ {[%clk 0:00:05]}  Na6 {[%clk 0:00:11]} 80. Kb3 {[%clk 0:00:05]}  Rc6 {[%clk 0:00:11]} 81. Kb2 {[%clk 0:00:04]}  Kb5 {[%clk 0:00:11]} 82. Kb3 {[%clk 0:00:03]}  Rc3+ {[%clk 0:00:11]} 83. Kb2 {[%clk 0:00:04]}  Nc5 {[%clk 0:00:11]} 84. Rh8 {[%clk 0:00:04]}  Na4+ {[%clk 0:00:11]} 85. Kb1 {[%clk 0:00:05]}  Re3 {[%clk 0:00:10]} 86. Rh5+ {[%clk 0:00:04]}  Kc4 {[%clk 0:00:10]} 87. Rh2 {[%clk 0:00:03]}  Kb3 {[%clk 0:00:10]} 88. Kc1 {[%clk 0:00:03]}  Re1+ {[%clk 0:00:09]} 89. Kd2 {[%clk 0:00:03]}  Rb1 {[%clk 0:00:09]} 90. Rh3+ {[%clk 0:00:03]}  Nc3 {[%clk 0:00:10]} 91. Rh4 {[%clk 0:00:03]}  Rd1+ {[%clk 0:00:10]} 92. Ke3 {[%clk 0:00:03]}  Rd7 {[%clk 0:00:10]} 93. Rh8 {[%clk 0:00:02]}  Kc2 {[%clk 0:00:10]} 94. Rh2+ {[%clk 0:00:02]}  Kb3 {[%clk 0:00:10]} 95. Rh4 {[%clk 0:00:02]}  Ka3 {[%clk 0:00:10]} 96. Rh8 {[%clk 0:00:01]}  b3 {[%clk 0:00:10]} 97. Ra8+ {[%clk 0:00:02]}  Na4 {[%clk 0:00:10]} 98. Rb8 {[%clk 0:00:02]}  b2 {[%clk 0:00:10]} 99. Ke2 {[%clk 0:00:03]}  b1=Q {[%clk 0:00:10]} 100. Rxb1 {[%clk 0:00:02]}  Nc3+ {[%clk 0:00:11]} 101. Ke3 {[%clk 0:00:03]}  Nxb1 {[%clk 0:00:11]} 0-1


[Site "https://www.chess.com"]

[Event "Titled Tuesday Blitz May 11 2021"]
[White "Karttunen, Mika"]
[Black "Dang, Hoang Son"]
[WhiteFideId "502081"]
[BlackFideId "12402435"]
[WhiteElo "2343"]
[BlackElo "2248"]
[Result "0-1"]
[Round "02"]
[TimeControl "180+1"]
[Date "2021.05.11"]
[WhiteClock "0:00:01"]
[BlackClock "0:00:03"]

1. e4 {[%clk 0:03:00]}  g6 {[%clk 0:02:59]} 2. d4 {[%clk 0:03:00]}  Bg7 {[%clk 0:03:00]} 3. Be3 {[%clk 0:02:57]}  d6 {[%clk 0:02:59]} 4. f3 {[%clk 0:02:56]}  Nf6 {[%clk 0:02:59]} 5. c4 {[%clk 0:02:52]}  O-O {[%clk 0:02:58]} 6. Nc3 {[%clk 0:02:51]}  c5 {[%clk 0:02:56]} 7. d5 {[%clk 0:02:49]}  Nbd7 {[%clk 0:02:55]} 8. Nge2 {[%clk 0:02:48]}  Ne5 {[%clk 0:02:55]} 9. Ng3 {[%clk 0:02:47]}  h5 {[%clk 0:02:55]} 10. Be2 {[%clk 0:02:42]}  h4 {[%clk 0:02:53]} 11. Nf1 {[%clk 0:02:42]}  e6 {[%clk 0:02:52]} 12. Nd2 {[%clk 0:02:37]}  exd5 {[%clk 0:02:51]} 13. cxd5 {[%clk 0:02:36]}  a6 {[%clk 0:02:49]} 14. a4 {[%clk 0:02:36]}  Bd7 {[%clk 0:02:49]} 15. O-O {[%clk 0:02:27]}  Re8 {[%clk 0:02:26]} 16. Rb1 {[%clk 0:01:30]}  Rb8 {[%clk 0:02:19]} 17. b4 {[%clk 0:01:24]}  c4 {[%clk 0:01:52]} 18. Qc2 {[%clk 0:00:39]}  b5 {[%clk 0:01:46]} 19. axb5 {[%clk 0:00:33]}  axb5 {[%clk 0:01:47]} 20. Ra1 {[%clk 0:00:33]}  Nh5 {[%clk 0:01:31]} 21. Ra6 {[%clk 0:00:27]}  Bc8 {[%clk 0:01:28]} 22. Ra7 {[%clk 0:00:26]}  Bh6 {[%clk 0:01:22]} 23. Bd4 {[%clk 0:00:25]}  Nf4 {[%clk 0:01:19]} 24. Kh1 {[%clk 0:00:18]}  Qg5 {[%clk 0:01:06]} 25. Rf2 {[%clk 0:00:18]}  Ned3 {[%clk 0:00:29]} 26. Bxd3 {[%clk 0:00:18]}  Nxd3 {[%clk 0:00:29]} 27. Re2 {[%clk 0:00:19]}  Bg7 {[%clk 0:00:18]} 28. Be3 {[%clk 0:00:17]}  Qe5 {[%clk 0:00:17]} 29. Ndb1 {[%clk 0:00:16]}  h3 {[%clk 0:00:17]} 30. g3 {[%clk 0:00:16]}  Re7 {[%clk 0:00:16]} 31. Rxe7 {[%clk 0:00:15]}  Qxe7 {[%clk 0:00:17]} 32. Qa2 {[%clk 0:00:12]}  Bb7 {[%clk 0:00:16]} 33. Qa7 {[%clk 0:00:12]}  Ra8 {[%clk 0:00:16]} 34. Qb6 {[%clk 0:00:12]}  Ra1 {[%clk 0:00:17]} 35. Ra2 {[%clk 0:00:10]}  Bxc3 {[%clk 0:00:16]} 36. Rxa1 {[%clk 0:00:10]}  Bxa1 {[%clk 0:00:17]} 37. Qxb5 {[%clk 0:00:10]}  Ne5 {[%clk 0:00:13]} 38. Na3 {[%clk 0:00:09]}  c3 {[%clk 0:00:13]} 39. f4 {[%clk 0:00:08]}  Ng4 {[%clk 0:00:13]} 40. Qd3 {[%clk 0:00:06]}  Ba6 {[%clk 0:00:11]} 41. b5 {[%clk 0:00:05]}  Bb7 {[%clk 0:00:10]} 42. Nc2 {[%clk 0:00:06]}  Bb2 {[%clk 0:00:11]} 43. Bd4 {[%clk 0:00:06]}  f5 {[%clk 0:00:10]} 44. e5 {[%clk 0:00:05]}  Bxd5+ {[%clk 0:00:10]} 45. Kg1 {[%clk 0:00:05]}  dxe5 {[%clk 0:00:08]} 46. fxe5 {[%clk 0:00:05]}  Qb7 {[%clk 0:00:08]} 47. b6 {[%clk 0:00:05]}  Be6 {[%clk 0:00:07]} 48. Qe2 {[%clk 0:00:04]}  Kh7 {[%clk 0:00:05]} 49. Be3 {[%clk 0:00:03]}  Qe4 {[%clk 0:00:03]} 50. b7 {[%clk 0:00:01]}  Bd5 {[%clk 0:00:03]} 0-1


[Site "https://www.chess.com"]